bitfinex/quotes_ETHUSD_20241129
["timestamp","ask_amount","ask_price","bid_price","bid_amount"]
[1732844823648,0.26239607,3564.6,3564.5,0.03136945]
[1732844824150,0.26239607,3564.6,3564.5,2.83680945]
[1732844824550,0.26239607,3564.6,3564.5,0.03136945]
[1732844824995,0.26239607,3564.6,3564.3,2.80557]
[1732844825161,0.41983372,3564.9,3564.5,0.03176049]
[1732844825366,0.26219243,3564.8,3564.3,2.80557]
[1732844825687,2.80539,3564.6,3563.6,2.80613]
[1732844825904,0.7858,3564.0,3563.4,2.8063]
[1732844826200,0.7858,3564.0,3563.3,0.794]
[1732844826201,3.59165,3564.0,3563.2,2.8064]
[1732844826784,3.59165,3564.0,3563.3,3.37771155]
[1732844827153,0.7858,3564.0,3563.4,2.80624]
[1732844828959,1.144956,3564.0,3563.5,0.03117056]
[1732844829296,3.950786,3564.0,3563.6,0.03117056]
[1732844829450,0.02089881,3563.9,3563.2,2.80646]
[1732844829651,2.80595,3563.9,3563.3,0.03139514]
[1732844830383,0.02089881,3563.8,3563.3,0.03139514]
[1732844830580,0.8079,3563.6,3563.3,0.03139514]
[1732844830881,0.8079,3563.6,3563.1,2.80653]
[1732844831273,0.8079,3563.6,3563.2,0.0314564]
[1732844831956,0.8079,3563.6,3563.3,2.80634]
[1732844832384,0.8079,3563.6,3563.4,0.03145981]
[1732844832779,1.16929,3563.6,3563.0,2.80659]
[1732844832979,3.97544,3563.6,3563.5,0.03145981]
[1732844833181,3.97544,3563.6,3562.9,2.80668]
[1732844833379,3.97544,3563.6,3562.8,0.55058649]
[1732844833380,0.8079,3563.6,3563.5,0.03148023]
[1732844833579,0.8079,3563.6,3562.8,0.55058649]
[1732844833781,0.7703,3563.4,3562.8,3.35730649]
[1732844834420,0.7703,3563.4,3562.7,2.80685]
[1732844834625,0.02089881,3563.3,3562.7,2.80684]
[1732844834793,2.80637,3563.4,3562.7,2.80684]
[1732844834993,0.7758,3563.3,3562.7,2.80684]
[1732844835599,3.58974,3563.1,3562.4,2.80706]
[1732844836005,0.7595,3562.9,3561.9,0.7537]
[1732844836223,0.7595,3562.9,3562.4,2.80703]
[1732844837192,0.7595,3562.9,3562.2,2.80724]
[1732844838211,0.7595,3562.9,3562.3,2.80714]
[1732844839245,0.75362939,3562.9,3562.5,2.80701]
[1732844839523,0.75362939,3562.9,3562.3,2.80714]
[1732844839726,0.75362939,3562.9,3562.3,3.14750664]
[1732844839941,0.75362939,3562.9,3562.5,2.80696]
[1732844840389,0.75362939,3562.9,3562.6,2.80687]
[1732844840923,0.75362939,3562.9,3562.7,2.80683]
[1732844842733,0.7747,3563.2,3563.0,2.8066]
[1732844843521,0.7747,3563.5,3563.1,2.80648]
[1732844843834,0.7747,3563.5,3563.3,2.80632]
[1732844844334,0.7747,3563.5,3563.4,0.03234135]
[1732844846937,0.26050216,3564.0,3563.4,0.03234135]
[1732844846938,0.8055,3563.9,3563.6,2.80613]
[1732844847323,0.8055,3563.9,3563.7,0.03224261]
[1732844848019,0.26108342,3564.1,3563.7,0.03224261]
[1732844848217,3.0,3564.6,3563.9,2.80589]
[1732844848218,0.7953,3564.2,3563.9,2.80589]
[1732844848456,0.7953,3564.2,3564.0,0.03206897]
[1732844848825,1.05638342,3564.2,3564.0,0.03206897]
[1732844849149,0.7953,3564.2,3564.1,0.03206897]
[1732844849309,1.05638342,3564.2,3564.1,0.03206897]
[1732844849513,1.05638342,3564.2,3563.9,2.8059]
[1732844849712,0.26108342,3564.1,3563.9,3.367103]
[1732844849940,0.26108342,3564.4,3564.3,2.80559]
[1732844850148,0.26108342,3564.7,3564.4,2.80552]
[1732844850408,0.26108342,3565.0,3564.6,2.80536]
[1732844850811,0.26108342,3565.0,3564.4,2.80551]
[1732844851013,0.26108342,3565.0,3564.6,2.80531]
[1732844851214,0.26108342,3564.9,3564.7,2.80527]
[1732844851547,0.26108342,3564.8,3564.7,2.80528]
[1732844852313,0.8307,3565.1,3564.7,2.80528]
[1732844852518,0.2614215,3565.0,3564.7,2.80528]
[1732844852717,0.2614215,3564.9,3564.8,2.8052]
[1732844853224,0.2614215,3565.2,3564.8,2.8052]
[1732844853421,0.2614215,3565.1,3564.8,2.8052]
[1732844853628,0.2614215,3565.0,3564.8,2.8052]
[1732844853839,0.2614215,3565.3,3564.8,2.8052]
[1732844854066,0.7668,3565.4,3564.6,2.80534]
[1732844854067,0.2614215,3565.2,3564.9,2.80508]
[1732844854244,0.7668,3565.4,3564.9,2.80507]
[1732844854611,0.26141558,3565.3,3565.0,2.80498]
[1732844854827,0.26141558,3565.3,3565.1,2.80497]
[1732844855239,0.7668,3565.4,3564.9,2.80507]
[1732844855470,0.26141558,3565.3,3564.9,2.80507]
[1732844855962,0.7668,3565.4,3565.1,2.8049]
[1732844856552,1.04291558,3565.7,3565.1,2.8049]
[1732844856731,0.26141558,3565.6,3565.1,2.8049]
[1732844857061,0.26141558,3565.5,3565.1,2.8049]
[1732844857281,0.26141558,3565.6,3565.1,2.8049]
[1732844857483,0.7815,3565.7,3565.1,2.8049]
[1732844857641,0.26141558,3565.6,3565.1,2.8049]
[1732844858350,0.7815,3565.7,3565.1,2.8049]
[1732844858553,3.84741558,3565.7,3565.0,2.80502]
[1732844858751,0.26141558,3565.6,3565.0,2.80502]
[1732844859037,0.26141558,3565.6,3565.1,2.83536791]
[1732844859238,1.74992096,3565.7,3565.1,2.83536791]
[1732844859832,1.74992096,3565.7,3565.1,0.03040791]
[1732844860371,1.04291558,3565.7,3565.1,0.03040791]
[1732844860740,1.04291558,3565.7,3565.1,2.83536791]
[1732844861272,1.0422481,3565.7,3565.1,2.83536791]
[1732844861474,0.7815,3565.7,3565.1,0.03040791]
[1732844861676,1.4685657,3565.7,3565.1,0.03040791]
[1732844861989,1.4685657,3565.7,3564.8,3.5811]
[1732844862146,1.4685657,3565.7,3565.2,0.02977508]
[1732844862488,1.4685657,3565.7,3564.8,3.5811]
[1732844862654,4.01238851,3565.7,3565.0,2.80503]
[1732844862847,0.26067719,3565.6,3565.0,2.80503]
[1732844863063,0.26067719,3565.6,3565.1,0.02977508]
[1732844865574,3.06526719,3565.6,3565.1,0.02977508]
[1732844865742,0.42731557,3565.5,3564.9,2.80511]
[1732844866275,0.42731557,3565.5,3565.0,2.80503]
[1732844866475,0.42731557,3565.5,3565.0,2.83480508]
[1732844866680,2.80459,3565.6,3565.0,2.83480508]
[1732844868567,2.80459,3565.6,3565.0,0.02977508]
[1732844868837,3.06533154,3565.5,3565.0,0.02977508]
[1732844869039,0.26067154,3565.4,3564.6,2.80535]
[1732844869261,0.26067154,3565.6,3565.1,0.02967645]
[1732844869467,0.26067154,3565.6,3564.9,2.8051]
[1732844869684,0.55,3565.4,3564.5,0.8085]
[1732844869898,3.60721,3565.3,3564.4,2.80551]
[1732844870113,0.26067154,3565.2,3564.5,0.02972065]
[1732844871401,3.60721,3565.3,3564.5,0.02972065]
[1732844871563,3.60721,3565.3,3564.6,2.80534]
[1732844872003,0.8024,3565.3,3564.8,2.80518]
[1732844872700,0.8024,3565.3,3564.9,0.02980227]
[1732844873060,0.8024,3565.3,3564.2,0.8205]
[1732844873265,0.8024,3565.3,3563.7,6.13378833]
[1732844873266,0.8024,3565.3,3565.0,2.80502]
[1732844873575,0.8024,3565.3,3564.1,0.8217]
[1732844873713,0.8024,3565.3,3565.1,0.02977847]
[1732844873917,0.7621,3565.1,3564.1,0.8217]
[1732844874121,2.66629265,3565.0,3564.3,2.80558]
[1732844874301,0.26124265,3564.9,3564.3,2.80558]
[1732844874638,0.26124265,3564.9,3563.5,5.80617]
[1732844874639,0.26136922,3564.8,3564.2,2.80565]
[1732844874831,2.80538,3564.6,3563.8,2.80593]
[1732844874984,0.7568,3564.3,3563.4,2.8063]
[1732844875185,0.7568,3563.9,3563.2,2.8064]
[1732844875417,0.77769881,3563.9,3563.2,2.8064]
[1732844875615,0.77769881,3563.9,3563.4,2.80629]
[1732844875927,0.7568,3563.9,3563.2,2.80646]
[1732844876485,0.7568,3563.9,3563.6,2.80613]
[1732844877329,0.7568,3563.9,3563.4,2.8063]
[1732844877489,0.7543,3564.2,3563.6,2.80614]
[1732844877690,0.26161237,3564.1,3563.5,2.80617]
[1732844877886,0.26161237,3564.0,3563.6,2.80613]
[1732844878131,0.7543,3564.2,3563.6,2.80613]
[1732844878427,0.26163467,3564.1,3563.6,2.80613]
[1732844878583,0.26163467,3564.0,3563.3,2.80638]
[1732844878784,0.26163467,3563.9,3563.3,2.80638]
[1732844879025,2.8059,3564.0,3563.3,2.80638]
[1732844879182,0.26164493,3563.9,3563.3,2.80638]
[1732844879383,0.26164989,3563.8,3563.3,2.80638]
[1732844879621,2.8059,3564.0,3563.3,3.31733913]
[1732844879622,0.26165106,3563.9,3563.3,3.31733913]
[1732844879820,0.8176,3564.0,3562.9,0.8064]
[1732844880027,3.62383,3563.5,3562.7,0.8064]
[1732844880226,0.8176,3563.5,3562.8,2.80672]
[1732844880525,0.8176,3563.5,3562.7,0.8064]
[1732844880526,0.26158887,3563.4,3562.9,2.80666]
[1732844880687,0.26158887,3563.4,3562.7,3.61325]
[1732844880887,3.62386,3563.5,3562.8,0.642011]
[1732844880888,0.2615876,3563.3,3562.8,0.642011]
[1732844881134,3.62386,3563.5,3562.8,0.642011]
[1732844881611,2.80642,3563.3,3562.8,0.642011]
[1732844881930,0.8176,3563.5,3562.4,4.16941375]
[1732844882224,0.26136561,3563.4,3562.5,2.80697]
[1732844882383,0.26136561,3563.3,3562.5,2.80697]
[1732844882581,3.06784561,3563.2,3562.6,0.02806658]
[1732844882817,2.80648,3563.2,3562.6,0.70045603]
[1732844883234,0.17554596,3563.8,3562.1,0.7732]
[1732844883235,0.84619881,3563.1,3562.1,0.7732]
[1732844883390,3.63232,3562.5,3561.8,0.7732]
[1732844883592,0.8253,3562.5,3561.8,0.7732]
[1732844883792,2.80719,3562.3,3561.8,0.638858]
[1732844884331,6.43942,3562.5,3561.8,0.638858]
[1732844884485,3.63234,3562.5,3561.8,0.638858]
[1732844887132,0.8253,3562.5,3561.8,3.446398]
[1732844887304,2.80672,3562.9,3562.0,2.80734]
[1732844887514,2.80672,3562.9,3561.8,3.446398]
[1732844887515,2.80703,3562.5,3561.8,3.446398]
[1732844887719,2.80703,3562.5,3561.8,0.638858]
[1732844888119,2.80689,3562.7,3561.8,3.446358]
[1732844888342,2.80689,3562.7,3561.9,0.02807164]
[1732844888643,3.59664,3562.8,3562.0,3.15484296]
[1732844888852,2.80662,3563.0,3562.1,0.81287162]
[1732844889030,0.7898,3563.1,3562.1,0.81287162]
[1732844889031,0.7898,3563.1,3562.3,2.8071]
[1732844889207,2.80663,3563.0,3562.1,3.62331077]
[1732844889556,2.80663,3563.0,3562.2,0.03119077]
[1732844889718,2.80663,3563.0,3562.2,3.48149985]
[1732844889918,2.80647,3563.2,3562.3,2.83523818]
[1732844890114,0.7903,3563.4,3562.2,0.64307908]
[1732844890115,0.02089881,3563.1,3562.2,0.64307908]
[1732844890333,2.80689,3562.7,3562.3,0.03162317]
[1732844890840,3.59708,3562.8,3562.1,0.7848]
[1732844891044,3.59708,3562.8,3562.4,0.03162317]
[1732844891247,2.80665,3563.0,3562.3,2.80717]
[1732844891421,2.80665,3563.0,3562.5,0.03162317]
[1732844891621,2.8067,3562.9,3562.1,3.59212]
[1732844892142,2.80682,3562.8,3562.2,0.03162317]
[1732844892356,0.02089881,3562.9,3562.2,0.03162317]
[1732844892518,2.80688,3562.7,3562.2,0.03162317]
[1732844892860,2.8068,3562.8,3562.2,0.03162317]
[1732844893064,2.8068,3562.8,3562.2,0.39399849]
[1732844893575,2.8068,3562.8,3562.2,0.03162317]
[1732844893745,3.60596,3562.4,3562.2,0.03162317]
[1732844894122,3.60596,3562.4,3561.6,0.56776432]
[1732844894123,2.82806881,3562.3,3561.6,0.56776432]
[1732844894448,2.80737,3562.1,3561.6,0.56776432]
[1732844894632,2.80746,3562.0,3561.2,3.63363]
[1732844894845,0.02089881,3562.1,3561.2,3.63363]
[1732844894846,2.80749,3561.9,3561.3,0.363363]
[1732844895871,2.82847881,3561.8,3561.2,1.393521]
[1732844896058,2.80758,3561.8,3561.2,1.393521]
[1732844896778,2.80747,3562.0,3561.2,4.201551]
[1732844897274,2.80736,3562.1,3561.2,4.22962834]
[1732844897275,2.80749,3561.9,3561.2,4.22962834]
[1732844898483,2.80736,3562.1,3561.2,4.22962834]
[1732844898648,2.80736,3562.1,3561.3,3.23085283]
[1732844898845,2.80747,3562.0,3561.3,3.23085283]
[1732844899048,2.80749,3561.9,3561.3,3.23085283]
[1732844901938,2.80749,3561.9,3561.3,0.42296283]
[1732844902139,3.62276,3561.8,3561.3,0.42296283]
[1732844903383,3.62281,3561.8,3561.2,0.8256]
[1732844904451,0.778,3562.1,3561.3,0.03202855]
[1732844904650,3.5851,3562.4,3561.5,2.80774]
[1732844904882,3.5851,3562.4,3561.3,2.83998855]
[1732844904883,2.80744,3562.0,3561.3,2.80796]
[1732844905178,0.778,3561.8,3561.4,0.363356]
[1732844905382,2.80765,3561.7,3561.4,0.03202855]
[1732844905762,0.778,3561.8,3561.2,0.8256]
[1732844905963,0.778,3561.8,3561.5,0.03202855]
[1732844906141,2.80752,3561.9,3561.2,3.63357]
[1732844906341,2.80752,3561.9,3561.6,0.03202855]
[1732844906543,2.80752,3561.9,3561.2,3.63357]
[1732844906774,2.80752,3561.9,3561.7,0.03202855]
[1732844906942,2.80752,3561.9,3561.2,4.12328769]
[1732844907279,2.80752,3561.9,3561.8,0.03202855]
[1732844907499,0.17562027,3562.5,3561.7,0.7574]
[1732844907653,3.13378833,3563.4,3561.9,0.7574]
[1732844907654,0.2613129,3562.4,3561.9,0.7574]
[1732844907859,0.67941355,3563.2,3562.4,0.8191]
[1732844908085,0.2613129,3563.1,3562.4,0.8191]
[1732844908294,0.2613129,3563.0,3562.7,2.80682]
[1732844908503,3.22434065,3563.5,3562.8,0.561381]
[1732844908504,0.41810065,3563.4,3562.8,0.561381]
[1732844908796,0.67959551,3563.3,3562.9,0.03179352]
[1732844909001,0.26149486,3563.2,3562.9,0.03179352]
[1732844909202,0.26149486,3563.1,3562.9,2.83842352]
[1732844909494,0.41810065,3563.5,3562.9,0.33931103]
[1732844909796,0.67971941,3563.4,3562.9,0.03179352]
[1732844910007,3.08890532,3563.3,3562.9,0.03179352]
[1732844910165,3.48659294,3563.3,3562.9,0.03179352]
[1732844910365,0.26161651,3563.2,3562.5,2.80694]
[1732844910586,0.26161651,3563.1,3563.0,0.03179352]
[1732844910798,0.26161651,3563.4,3562.7,2.80683]
[1732844911124,0.26161651,3563.3,3562.7,2.80683]
[1732844911258,0.26161651,3563.2,3562.8,0.03179352]
[1732844911461,0.26161651,3563.4,3562.8,0.03179352]
[1732844911663,0.26161651,3563.3,3562.8,0.03179352]
[1732844911862,0.41858643,3563.6,3562.8,0.03179352]
[1732844911863,0.26161651,3563.2,3562.9,2.80668]
[1732844912170,0.26161651,3563.5,3563.2,2.80645]
[1732844912374,0.26161651,3563.7,3563.3,0.360595]
[1732844912607,0.26161651,3563.6,3563.3,0.360595]
[1732844912776,0.26161651,3563.6,3563.4,0.03179352]
[1732844912973,0.26161651,3563.7,3563.4,0.03179352]
[1732844913178,0.26158491,3563.6,3563.4,0.03179352]
[1732844913399,0.02089881,3563.8,3563.4,0.03179352]
[1732844913566,0.26158784,3563.7,3563.4,0.03179352]
[1732844913897,0.26158784,3563.7,3563.0,0.7995]
[1732844913898,0.26158784,3563.8,3563.5,0.03179352]
[1732844914061,2.80615,3563.6,3563.0,0.7995]
[1732844914488,0.55,3563.7,3563.1,0.03123155]
[1732844914756,2.80631,3563.4,3563.1,0.03123155]
[1732844915169,2.80631,3563.4,3562.7,0.7876]
[1732844915402,2.80631,3563.4,3563.2,0.03104086]
[1732844915702,2.80631,3563.4,3562.7,0.7876]
[1732844915865,2.80631,3563.4,3562.7,1.20199795]
[1732844916319,2.80656,3563.1,3562.8,0.03104086]
[1732844916518,0.83849881,3563.0,3562.1,0.8332]
[1732844916715,2.80695,3562.6,3562.2,0.03108853]
[1732844916901,2.80703,3562.5,3562.2,0.03108853]
[1732844917070,0.55,3562.9,3561.8,0.8332]
[1732844917270,2.80704,3562.5,3561.9,0.02901914]
[1732844917671,0.55,3562.9,3561.9,0.02901914]
[1732844917672,0.26134829,3562.4,3561.9,0.02901914]
[1732844917872,2.80719,3562.3,3561.9,0.02901914]
[1732844918115,2.80711,3562.4,3561.9,0.02901914]
[1732844918673,0.2613385,3562.3,3561.9,0.02901914]
[1732844918875,0.41815098,3562.6,3561.9,0.42688587]
[1732844919212,0.26136372,3562.5,3561.9,0.02807347]
[1732844919379,3.77485098,3562.9,3561.9,2.80748]
[1732844919571,2.80687,3562.7,3562.0,2.86478329]
[1732844919772,0.26140623,3562.6,3562.0,2.83671203]
[1732844919983,0.26140623,3562.5,3562.0,2.83671203]
[1732844920188,2.80687,3562.7,3562.0,3.48446623]
[1732844920421,0.26140409,3562.6,3562.0,3.48446623]
[1732844920625,0.26140409,3562.5,3562.2,2.80724]
[1732844920919,0.26146664,3562.7,3562.0,0.6477542]
[1732844921223,0.26146664,3562.6,3562.1,0.02931203]
[1732844921520,2.80695,3562.6,3562.1,0.02931203]
[1732844921723,0.8176,3563.0,3562.1,0.02931203]
[1732844921724,2.80678,3562.8,3562.1,0.02931203]
[1732844922028,0.26147882,3562.7,3562.1,0.02931203]
[1732844922203,0.26147882,3562.6,3562.1,0.02931203]
[1732844922410,2.80678,3562.8,3562.1,0.02931203]
[1732844922613,0.26148706,3562.7,3562.1,0.02931203]
[1732844922800,0.26148706,3562.6,3562.1,0.02931203]
[1732844923001,2.80678,3562.8,3562.1,0.02931203]
[1732844923183,0.26149254,3562.7,3562.1,0.74183465]
[1732844923387,0.26149254,3562.6,3562.1,0.74183465]
[1732844923692,2.80678,3562.8,3562.1,0.74183465]
[1732844923886,0.26154457,3562.7,3562.1,0.74183465]
[1732844924090,0.26154457,3562.6,3562.1,0.02931203]
[1732844924439,2.80694,3562.6,3561.8,3.64076]
[1732844924725,0.26154325,3562.5,3561.9,0.02807218]
[1732844924931,2.80681,3562.8,3562.0,2.83704573]
[1732844925230,0.26154634,3562.7,3562.0,2.83704573]
[1732844925427,0.26154634,3562.6,3562.1,3.17708179]
[1732844925597,2.80695,3562.6,3562.0,0.02964573]
[1732844925801,0.26155597,3562.5,3561.8,0.8332]
[1732844926165,2.80703,3562.5,3561.8,3.64076]
[1732844926337,2.80703,3562.5,3561.9,0.0295776]
[1732844926925,0.55,3562.8,3562.0,2.8074]
[1732844927121,0.2615969,3562.7,3562.0,3.17722498]
[1732844927331,3.0685469,3562.6,3562.1,0.0295776]
[1732844927487,2.80695,3562.6,3562.1,0.0295776]
[1732844927687,0.26162861,3562.5,3561.8,3.64073]
[1732844927884,2.80695,3562.6,3561.9,0.49889644]
[1732844929953,2.80695,3562.6,3562.0,0.02858828]
[1732844930148,2.8072,3562.3,3562.0,0.02858828]
[1732844930297,2.8072,3562.3,3561.6,2.80767]
[1732844930500,2.8072,3562.3,3561.7,0.02858828]
[1732844932925,2.8072,3562.3,3561.8,0.7891]
[1732844933331,2.8072,3562.3,3561.9,0.02858828]
[1732844933759,2.80726,3562.2,3561.9,0.02858828]
[1732844934347,2.82825881,3562.1,3561.9,0.02858828]
[1732844934554,2.80736,3562.1,3561.9,0.02858828]
[1732844934850,2.80736,3562.1,3561.5,0.7891]
[1732844935017,2.80736,3562.1,3562.0,0.02869728]
[1732844935206,2.80736,3562.1,3561.5,0.7891]
[1732844935207,2.80736,3562.1,3561.5,3.5969]
[1732844935403,0.2618905,3562.1,3561.5,3.5969]
[1732844935636,2.80734,3562.1,3561.6,0.02869728]
[1732844935852,2.80749,3561.9,3561.6,0.02869728]
[1732844936019,3.451992,3562.1,3561.6,0.02869728]
[1732844936224,0.26191743,3562.0,3561.6,0.02869728]
[1732844936441,0.26195394,3561.9,3561.6,0.02869728]
[1732844936608,2.80736,3562.1,3561.6,0.02869728]
[1732844936810,0.26195255,3562.0,3561.6,0.02869728]
[1732844937041,0.26195255,3561.9,3561.6,0.02869728]
[1732844937353,2.80736,3562.1,3561.6,0.02869728]
[1732844937540,0.2619856,3562.0,3561.6,0.02869728]
[1732844937706,2.80736,3562.1,3561.6,0.02869728]
[1732844937707,0.2619856,3561.9,3561.6,0.02869728]
[1732844937910,2.80736,3562.1,3561.6,0.02869728]
[1732844938109,0.26198054,3562.0,3561.6,0.02869728]
[1732844938344,0.26198054,3561.9,3561.6,3.19892401]
[1732844938550,3.22632977,3562.3,3561.6,3.19892401]
[1732844938706,0.26195127,3562.2,3561.6,2.83635728]
[1732844938910,3.22632977,3562.3,3561.6,2.83635728]
[1732844938911,0.26195127,3562.1,3561.6,2.83635728]
[1732844939155,0.26195127,3562.0,3561.6,2.83635728]
[1732844939316,3.22632977,3562.3,3561.6,2.83635728]
[1732844939515,0.26197098,3562.2,3561.6,2.83635728]
[1732844939758,0.26197098,3562.1,3561.6,2.83635728]
[1732844939959,0.26197098,3562.0,3561.6,2.83635728]
[1732844940115,3.22632977,3562.3,3561.7,0.64333273]
[1732844940319,0.26197149,3562.2,3561.8,0.02878586]
[1732844940658,0.26197149,3562.1,3561.6,2.80766]
[1732844940843,0.26197149,3562.0,3561.9,0.02878586]
[1732844941190,0.26198903,3562.0,3561.9,0.02878586]
[1732844941452,0.26198903,3562.0,3561.5,3.59688]
[1732844941651,0.26198903,3561.9,3561.5,1.429591]
[1732844941857,2.80749,3561.9,3561.5,0.7891]
[1732844942458,0.26213493,3561.8,3561.5,0.7891]
[1732844942649,0.26213493,3561.7,3561.5,0.7891]
[1732844942844,2.80749,3561.9,3561.5,0.7891]
[1732844943018,0.26210916,3561.8,3561.5,0.7891]
[1732844943220,0.26210916,3561.7,3561.5,0.7891]
[1732844943416,0.26214803,3561.6,3561.5,0.7891]
[1732844944158,0.26214522,3561.6,3561.5,0.7891]
[1732844947489,0.26237484,3561.6,3561.5,0.7891]
[1732844949060,0.26237484,3561.6,3561.5,0.81798467]
[1732844950154,3.07009484,3561.6,3561.5,0.02888467]
[1732844950465,3.07009484,3561.6,3560.8,3.62255]
[1732844950466,2.80781,3561.5,3560.8,3.62255]
[1732844950671,0.26237484,3561.4,3560.8,3.62255]
[1732844950853,0.26228446,3561.3,3560.8,3.62255]
[1732844951055,2.80781,3561.5,3560.8,3.62255]
[1732844951298,0.262282,3561.2,3560.9,2.80825]
[1732844953095,3.07019104,3561.1,3560.4,0.7566]
[1732844953281,2.80831,3560.9,3560.3,0.29326345]
[1732844953486,2.80813,3561.1,3560.5,2.80857]
[1732844953681,0.26198464,3561.0,3560.5,2.80851]
[1732844953866,3.835442,3561.2,3560.5,2.80851]
[1732844954060,0.26198196,3561.1,3560.3,2.80875]
[1732844954256,0.26198248,3561.0,3560.4,2.80866]
[1732844954463,3.835442,3561.2,3560.4,2.80866]
[1732844954790,0.26193036,3561.1,3560.4,2.80866]
[1732844954993,0.26193036,3561.0,3560.4,2.80866]
[1732844955154,3.835442,3561.2,3560.4,2.80866]
[1732844955355,3.07004297,3561.1,3560.4,2.80866]
[1732844955568,0.26188297,3561.0,3560.4,2.80866]
[1732844955773,2.80816,3561.1,3560.4,2.80866]
[1732844955969,0.26193717,3561.0,3560.5,2.80858]
[1732844956199,3.57317,3561.2,3560.5,2.80858]
[1732844956420,0.26200227,3561.1,3560.5,2.80858]
[1732844956617,0.26200227,3561.0,3560.5,2.80858]
[1732844956786,3.57317,3561.2,3560.5,2.80858]
[1732844956983,0.26202806,3561.1,3560.5,2.80858]
[1732844957183,3.57317,3561.2,3560.5,2.83666266]
[1732844957378,0.26200874,3561.1,3560.5,2.83666266]
[1732844957620,0.26200874,3561.0,3560.5,2.83666266]
[1732844957933,0.8181,3561.5,3560.6,0.8312]
[1732844958222,0.8181,3561.5,3560.5,0.7096542]
[1732844958223,2.80759,3561.8,3561.2,0.8312]
[1732844958426,0.26205872,3561.7,3561.2,0.8312]
[1732844958584,2.80759,3561.8,3561.2,0.8312]
[1732844958585,0.26205872,3561.6,3561.2,0.8312]
[1732844958906,2.80759,3561.8,3561.2,0.8312]
[1732844958907,0.26205872,3561.5,3561.2,0.8312]
[1732844959108,2.80759,3561.8,3561.2,0.8312]
[1732844959315,0.26208112,3561.7,3561.2,0.8312]
[1732844959500,0.26208112,3561.6,3561.2,0.8312]
[1732844959826,0.26208112,3561.5,3561.2,0.8312]
[1732844960123,0.8181,3561.9,3561.2,0.8312]
[1732844960327,0.26214315,3561.8,3561.4,2.80786]
[1732844960620,0.26214315,3561.7,3561.5,0.02729657]
[1732844960825,0.92562801,3562.5,3561.5,0.02729657]
[1732844961037,3.55702,3562.5,3561.6,0.7662]
[1732844961319,0.26218056,3562.4,3561.6,3.60118976]
[1732844961539,0.26218056,3562.3,3561.6,3.60118976]
[1732844961696,3.912722,3562.5,3561.6,3.60118976]
[1732844962320,3.912722,3562.5,3561.7,2.80763]
[1732844962712,0.26220965,3562.4,3561.8,0.02715973]
[1732844962888,0.26220965,3562.3,3561.8,0.02715973]
[1732844963212,0.26220965,3562.2,3561.7,2.80763]
[1732844963384,3.55702,3562.5,3561.9,0.02715973]
[1732844963385,0.26220965,3562.1,3561.9,0.02715973]
[1732844963587,0.26220965,3562.0,3561.9,2.80742]
[1732844963886,3.79423852,3562.8,3561.7,3.4458]
[1732844963887,2.80699,3562.6,3561.7,3.4458]
[1732844964102,0.26221554,3562.5,3561.9,0.02698266]
[1732844964262,0.26221554,3562.4,3561.7,3.4458]
[1732844964450,0.26221554,3562.3,3562.0,0.02698266]
[1732844964646,0.26221554,3562.2,3561.8,3.22874]
[1732844964847,2.80699,3562.6,3562.1,0.02698266]
[1732844965065,0.26220498,3562.5,3561.8,2.80754]
[1732844965272,0.26220498,3562.4,3561.8,2.80754]
[1732844965551,0.26220498,3562.3,3561.9,0.02698266]
[1732844965748,0.26220498,3562.2,3561.9,0.38705693]
[1732844965953,0.26220498,3562.1,3561.9,0.38705693]
[1732844966164,2.80695,3562.6,3561.9,0.38705693]
[1732844966463,0.57089881,3562.7,3561.9,0.02698266]
[1732844966464,3.57128,3562.3,3561.9,0.02698266]
[1732844966787,0.26218454,3562.2,3561.3,3.61118]
[1732844967090,3.06952454,3562.1,3562.0,0.02671369]
[1732844967261,0.26218454,3562.1,3561.3,3.61118]
[1732844967464,0.26218454,3562.0,3561.6,2.80769]
[1732844967667,0.26218454,3561.9,3561.6,2.80769]
[1732844967876,3.57128,3562.3,3561.6,2.80769]
[1732844968189,0.26201882,3562.2,3561.7,2.83439134]
[1732844968366,0.26200143,3562.2,3561.7,2.83439134]
[1732844968567,0.7641,3562.3,3561.7,2.83439134]
[1732844968799,0.26199778,3562.2,3561.7,0.02676134]
[1732844968993,0.26199778,3562.1,3561.7,0.02676134]
[1732844969194,0.26199778,3562.0,3561.5,2.80777]
[1732844969393,0.26199778,3561.9,3561.8,0.026809]
[1732844969579,0.26199778,3561.9,3561.5,2.80777]
[1732844969786,3.57127,3562.3,3561.6,0.026809]
[1732844969962,0.89972415,3562.2,3561.6,0.026809]
[1732844970162,0.26188815,3562.1,3561.6,0.026809]
[1732844970388,0.26188815,3562.0,3561.6,0.026809]
[1732844970561,0.26188815,3561.9,3561.6,2.834469]
[1732844970760,0.7641,3562.3,3561.6,2.834469]
[1732844971090,0.61899647,3562.2,3561.6,2.834469]
[1732844971398,0.26187547,3562.1,3561.6,0.026809]
[1732844971581,0.26187547,3562.0,3561.6,0.026809]
[1732844971789,0.26187547,3561.9,3561.7,2.80762]
[1732844972107,0.55,3562.3,3561.8,0.7672]
[1732844972288,0.59757829,3562.2,3561.8,0.79311537]
[1732844972487,0.26186729,3562.1,3561.8,0.79311537]
[1732844972784,0.26186729,3562.0,3561.8,0.79311537]
[1732844973094,2.80709,3562.4,3561.8,0.02591537]
[1732844973294,0.26181813,3562.3,3561.8,0.02591537]
[1732844973494,0.26181813,3562.2,3561.6,0.7643]
[1732844973699,0.26181813,3562.1,3561.9,0.02591537]
[1732844973881,0.26181813,3562.0,3561.8,2.80756]
[1732844974083,3.56345,3562.6,3561.8,2.80756]
[1732844974289,1.01583318,3562.5,3561.8,2.80756]
[1732844974597,0.26180834,3562.4,3561.8,2.80756]
[1732844974756,0.26180834,3562.3,3561.8,2.80756]
[1732844974960,0.26180834,3562.2,3561.8,2.80756]
[1732844975167,0.26180834,3562.1,3561.8,2.80756]
[1732844975402,2.80695,3562.6,3561.9,0.8243]
[1732844975709,3.06882165,3562.5,3561.9,0.8243]
[1732844975902,0.26178165,3562.4,3561.9,0.8243]
[1732844976072,0.26178165,3562.3,3561.9,0.8243]
[1732844976272,0.26178165,3562.2,3561.9,0.8243]
[1732844976575,0.26178165,3562.1,3561.9,0.8243]